Cogmind - Beta 13 --- EXPLORER MODE // 2024.04.04 @ 20:15:39 Player: Dumant Result: Self-destructed Performance ------------- Evolutions (3) 1500 Regions Visited (6) 1200 Robots Destroyed (72) 360 Value Destroyed (2256) 2256 Prototype IDs (25) 500 Alien Tech Used (0) 0 Bonus (410) 410 TOTAL SCORE: 6226 Bonus ------- High Alert Combat Kills 110 Aligned with FarCom 300 Cogmind --------- Core Integrity 442/700 Matter 300/300 Energy 227/265 System Corruption 0% Temperature Cool (0) Movement Treading (305) Ox2 Location -7/Factory Parts ------- > --- POWER (2) -------- Improved Ion Engine Improved Ion Engine > --- PROPULSION (3) --- Advanced Treads Medium Treads > --- UTILITY (6) ------ Large Storage Unit Weight Redist. System Visual Processing Unit Signal Interpreter Improved Terrain Scanner Hardlight Generator > --- WEAPON (3) ------- Improved EM Shotgun Improved Medium Laser Plasma Cannon > --- INVENTORY (15) --- Nuclear Core Assault Rifle AWS/Gauss Improved Grenade Launcher Datajack Mining Laser Peak State ------------ > --- POWER ------------ Improved Ion Engine Improved Ion Engine > --- PROPULSION ------- Advanced Treads Advanced Treads Medium Treads > --- UTILITY ---------- Large Storage Unit Weight Redist. System Visual Processing Unit Signal Interpreter Improved Terrain Scanner Hardlight Generator > --- WEAPON ----------- Improved EM Shotgun Improved Medium Laser Plasma Cannon > --- INVENTORY -------- Nuclear Core Assault Rifle AWS/Gauss Improved Grenade Launcher Datajack Mining Laser [Rating: 38] Favorites ----------- Power Ion Engine Engine Ion Engine Propulsion Light Treads Treads Light Treads Utility Signal Interpreter Device Sensor Array Storage Large Storage Unit Processor Signal Interpreter Protection Core Shielding Weapon Assault Rifle Energy Gun Improved Medium Laser Energy Cannon Plasma Cannon Ballistic Gun Assault Rifle Ballistic Cannon Light Cannon Launcher Improved Grenade Launcher Special Weapon Mining Laser Build | -11 -10 -10 -10 -9 -8 -7 ------- Run | Yrd Mat Min Exi Min Mat Fac Slots Evolved 7 | . 1 . . . 4 2 Power 1 | . . . . . . 1 Propulsion 1 | . . . . . 1 . Utility 4 | . 1 . . . 2 1 Weapon 1 | . . . . . 1 . Parts Attached 59 | 8 8 . 1 . 32 10 Power 7 | 1 2 . . . 3 1 Engine 7 | 1 2 . . . 3 1 Core . | . . . . . . . Reactor . | . . . . . . . Propulsion 11 | 2 . . . . 6 3 Treads 11 | 2 . . . . 6 3 Leg . | . . . . . . . Wheel . | . . . . . . . Hover . | . . . . . . . Flight . | . . . . . . . Utility 17 | 3 4 . . . 6 4 Device 7 | . . . . . 3 4 Storage 4 | 2 2 . . . . . Processor 4 | 1 2 . . . 1 . Hackware . | . . . . . . . Protection 2 | . . . . . 2 . Artifact . | . . . . . . . Weapon 24 | 2 2 . 1 . 17 2 Energy Gun 4 | . . . . . 2 2 Energy Cannon 6 | . . . . . 6 . Ballistic Gun 8 | 2 1 . 1 . 4 . Ballistic Cannon 1 | . 1 . . . . . Launcher 3 | . . . . . 3 . Special Weapon 2 | . . . . . 2 . Impact Weapon . | . . . . . . . Slashing Weapon . | . . . . . . . Piercing Weapon . | . . . . . . . Special Melee Weapon . | . . . . . . . Unidentified Prototypes 2 | . . . . . 2 . Parts Lost 5 | . . . . . 3 2 Power 1 | . . . . . 1 . Propulsion 1 | . . . . . . 1 Utility 3 | . . . . . 2 1 Weapon . | . . . . . . . Highest Loss Streak 2 | . . . . . 2 1 To Critical Strikes . | . . . . . . . Average Slot Usage (%) 96 | . 99 100 97 87 94 88 Engine 10 | . 12 12 12 12 7 14 Treads 24 | . 25 25 25 25 24 19 Device 2 | . . . . . 6 12 Storage 10 | . 12 12 12 12 8 7 Processor 23 | . 25 25 25 25 21 14 Energy Cannon 3 | . . . . . 11 10 Ballistic Gun 11 | . 15 12 12 12 7 3 Ballistic Cannon 5 | . 8 12 10 . . . Naked Turns . | . . . . . . . Heaviest Build 90 | 18 90 30 35 35 45 57 Greatest Support 72 | 40 40 40 40 40 68 72 Greatest Overweight (x) 16 | 3 2 . . . 2 16 Average Overweight (x) . | . . . . . . . Largest Inventory Capacity 25 | 10 25 15 15 15 15 15 Average Capacity 15 | 9 17 15 15 15 15 15 Most Carried 15 | 3 11 13 15 15 15 15 Average Carried 11 | 1 8 11 13 13 12 12 Final Capacity 15 | 10 15 15 15 15 15 15 Final Carried 15 | 3 11 13 15 13 15 7 Class Distribution -------------------- 70% | Hacker-Mutant 29% | Hacker-Skirmisher Dominant Class ---------------- Hacker-Mutant | -10/Materials Hacker-Mutant | -10/Mines Hacker-Mutant | -10/Exiles Hacker-Mutant | -9/Mines Hacker-Skirmisher | -8/Materials Hacker-Skirmisher | -7/Factory Resources | -11 -10 -10 -10 -9 -8 -7 ----------- Run | Yrd Mat Min Exi Min Mat Fac Matter Collected 1365 | 222 301 . . 10 672 160 Remotely . | . . . . . . . Salvage Created 2729 | . 458 . . 426 1633 212 Parts 146 | . 34 . . 9 93 10 Haulers Intercepted 4 | . 2 . . . 2 . Recyclers Shooed 1 | . . . . 1 . . Parts Field Recycled . | . . . . . . . Retrieved Matter . | . . . . . . . Parts Self-Destructed . | . . . . . . . Prevented . | . . . . . . . Kills | -11 -10 -10 -10 -9 -8 -7 ------- Run | Yrd Mat Min Exi Min Mat Fac Combat Hostiles Destroyed 69 | . 9 . . 21 35 4 Guns 50 | . 8 . . 21 20 1 Cannons 16 | . 1 . . . 12 3 AOE 2 | . . . . . 2 . Classes Destroyed 14 | . 5 . . 2 7 . Builder 2 | . . . . . 2 . Tunneler 2 | . . . . . 2 . Hauler 4 | . 2 . . . 2 . Recycler 2 | . 1 . . . 1 . Operator 1 | . . . . . 1 . Watcher 8 | . 3 . . . 5 . Swarmer 12 | . 4 . . . 8 . Grunt 31 | . 5 . . 4 18 4 Brawler 3 | . . . . 1 2 . Duelist 2 | . . . . . 2 . Protector 1 | . . . . . 1 . Sentry 3 | . . . . . 3 . Hunter 1 | . . . . . 1 . Assembled 16 | . . . . 16 . . Best Kill Streak 14 | . 3 . . 12 14 3 Combat Bots Only 12 | . 2 . . 12 9 3 Max Kills in Single Turn 4 | . 2 . . 2 4 1 Gunslinging . | . . . . . . . Exploded 1 | . . . . . 1 . Melee . | . . . . . . . Uniques/NPCs Destroyed . | . . . . . . . Combat | -11 -10 -10 -10 -9 -8 -7 -------- Run | Yrd Mat Min Exi Min Mat Fac Hostile Shots Fired 149 | . 43 . . 8 70 28 Missed 33 | . 12 . . 2 13 6 Damage Taken 1677 | . 208 . . 66 972 431 Core 786 | . 45 . . 6 477 258 Absorbed by Shields 68 | . . . . . . 68 Redirected to Shielding 37 | . . . . . . 37 Ignored by Resistances 672 | . 134 . . 43 371 124 Core Remaining (%) 64 | 100 . . . 79 13 . Volleys Fired 118 | . 38 . . . 63 17 Largest 3 | . 2 . . . 3 3 Hottest 181 | . 55 . . . 180 181 Shots Fired 332 | . 76 . . 40 184 32 Gun 221 | . 69 . . 40 99 13 Cannon 105 | . 7 . . . 79 19 Launcher 4 | . . . . . 4 . Special 2 | . . . . . 2 . Kinetic 218 | . 76 . . 40 96 6 Thermal 104 | . . . . . 84 20 Explosive 4 | . . . . . 4 . Electromagnetic 6 | . . . . . . 6 Robot Hit Streak 41 | . 23 . . 41 40 30 Robot Miss Streak 2 | . 2 . . . 2 1 Penetration Max . | . . . . . . . Secondary Targets 2 | . 2 . . . . . Max Gunslinging Chain 1 | . 1 . . . . . Autonomous 81 | . . . . 40 41 . Shots Hit Robots 266 | . 60 . . 40 142 24 Core Hits 130 | . 24 . . 21 73 12 Critical Kills 2 | . . . . . 2 . Critical Parts Destroyed 1 | . 1 . . . . . Critical Strikes 3 | . 1 . . . 2 . Meltdown 2 | . . . . . 2 . Destroy 1 | . 1 . . . . . Melee Attacks . | . . . . . . . Impact . | . . . . . . . Slashing . | . . . . . . . Piercing . | . . . . . . . Sneak Attacks . | . . . . . . . Combat Hostiles . | . . . . . . . Follow-up Attacks . | . . . . . . . Damage Inflicted 6639 | . 644 . . 1239 4177 579 Guns 3920 | . 594 . . 1239 1892 195 Cannons 1901 | . 50 . . . 1467 384 Explosions 777 | . . . . . 777 . Melee . | . . . . . . . Ramming 17 | . . . . . 17 . Kinetic 3786 | . 644 . . 1239 1842 61 Thermal 1942 | . . . . . 1541 401 Explosive 777 | . . . . . 777 . Electromagnetic 117 | . . . . . . 117 Impact . | . . . . . . . Slashing . | . . . . . . . Piercing . | . . . . . . . Highest Corruption . | . . . . . . . Average Corruption . | . . . . . . . Corruption Purged . | . . . . . . . Corruption Blocked . | . . . . . . . Overload Shots . | . . . . . . . Overflow Damage 76 | . 3 . . . 55 18 Projectiles 39 | . 3 . . . 18 18 Explosions 37 | . . . . . 37 . Melee . | . . . . . . . Knockbacks 1 | . 1 . . . . . Impact . | . . . . . . . Kinetic 1 | . 1 . . . . . Secondary . | . . . . . . . Self-Inflicted Damage . | . . . . . . . Shots . | . . . . . . . Rammed 3 | . . . . . 3 . Targets Rammed 4 | . . . . . 4 . Kicked . | . . . . . . . Crushed 1 | . . . . . 1 . Highest Temperature 882 | . 24 . . . 882 692 Average Temperature 209 | . 10 . . . 205 289 Received Heat Transfer 730 | . 138 . . 24 414 154 Effects 62 | . . . . . 42 20 Shutdowns 7 | . . . . . 4 3 Energy Bleed 3 | . . . . . 3 . Interference 8 | . . . . . 5 3 Matter Decay 4 | . . . . . 3 1 Short Circuit 7 | . . . . . 3 4 Damage (minor) 4 | . . . . . 3 1 Damage (major) 21 | . . . . . 16 5 Damage (core) 8 | . . . . . 5 3 Siege Activations . | . . . . . . . Robots Corrupted . | . . . . . . . Combat Hostiles . | . . . . . . . Parts Fried 2 | . . . . . . 2 Impact Corruptions . | . . . . . . . Robots Melted 2 | . . . . . 2 . Combat Hostiles 1 | . . . . . 1 . Parts Melted 9 | . . . . . 8 1 Heat Transferred 3388 | . . . . . 2666 722 Parts Sabotaged . | . . . . . . . Parts Stolen . | . . . . . . . Parts Stripped . | . . . . . . . Power Chain Reactions . | . . . . . . . Alert | -11 -10 -10 -10 -9 -8 -7 ------- Run | Yrd Mat Min Exi Min Mat Fac Peak Influence 608 | . 154 1 . 143 608 225 Initial 121 | . . 1 . . 39 121 Average 126 | . 37 1 . 45 282 173 Maximum Alert Level 2 | . . . . . 2 1 Low Security (%) 72 | 100 100 100 . 100 24 56 Level 1 21 | . . . . . 56 43 Level 2 6 | . . . . . 19 . Level 3 . | . . . . . . . Level 4 . | . . . . . . . Level 5 . | . . . . . . . High Security . | . . . . . . . Max Security . | . . . . . . . Squads Dispatched 9 | . . . . 1 6 2 Investigation 2 | . . . . 1 1 . Extermination . | . . . . . . . Reinforcement 5 | . . . . . 3 2 Assault 1 | . . . . . 1 . Garrison 1 | . . . . . 1 . Intercept . | . . . . . . . Searches Triggered . | . . . . . . . Construction Impeded 1 | . . . . . 1 . Haulers Reinforced . | . . . . . . . Active Scanning Responses . | . . . . . . . Cargo Convoy Interrupts . | . . . . . . . Stealth | -11 -10 -10 -10 -9 -8 -7 --------- Run | Yrd Mat Min Exi Min Mat Fac Distress Signals 4 | . 1 . . . 2 1 Communications Jammed . | . . . . . . . Distress Signals . | . . . . . . . Times Spotted 91 | . 14 . . 24 44 9 Peak Tracking Total 13 | . 2 . . 13 9 4 Tactical Retreats 5 | . . . . 2 3 . Traps | -11 -10 -10 -10 -9 -8 -7 ------- Run | Yrd Mat Min Exi Min Mat Fac Traps Triggered 6 | . 1 . . . 5 . Indirectly . | . . . . . . . Trap Hack Attempts . | . . . . . . . Triggered . | . . . . . . . Disarmed . | . . . . . . . Reprogrammed . | . . . . . . . Reused . | . . . . . . . Traps Extracted . | . . . . . . . Installed . | . . . . . . . Triggered . | . . . . . . . Machines | -11 -10 -10 -10 -9 -8 -7 ---------- Run | Yrd Mat Min Exi Min Mat Fac Machines Disabled 4 | . . . . . 3 1 Max in Single Turn 1 | . . . . . 1 1 Garrison Access 1 | . . . . . 1 . Machines Repaired . | . . . . . . . Machines Dismantled . | . . . . . . . Machines Sabotaged . | . . . . . . . Overloaded Fab Kills . | . . . . . . . Hacking | -11 -10 -10 -10 -9 -8 -7 --------- Run | Yrd Mat Min Exi Min Mat Fac Machines Accessed 17 | . 8 . 3 2 3 1 Terminals 11 | . 7 . . 1 2 1 Fabricators . | . . . . . . . Repair Stations . | . . . . . . . Recycling Units 1 | . 1 . . . . . Scanalyzers 1 | . . . . . 1 . Garrison Access . | . . . . . . . Total Hacks 50 | . 18 . 12 9 8 3 Successful 40 | . 14 . 12 8 5 1 Failed 10 | . 4 . . 1 3 2 Catastrophic . | . . . . . . . Database Lockouts . | . . . . . . . Manual 11 | . 1 . 1 5 4 . Terminals 32 | . 14 . . 8 7 3 Fabricators . | . . . . . . . Repair Stations . | . . . . . . . Recycling Units 4 | . 4 . . . . . Scanalyzers 1 | . . . . . 1 . Garrison Access . | . . . . . . . Terminal Hacks 35 | . 10 . 12 8 4 1 Record 21 | . 2 . 11 7 . 1 Open Door 1 | . . . . 1 . . Emergency Access Points 3 | . 1 . . . 2 . Terminal Index 2 | . 1 . . . 1 . Alert Level 1 | . 1 . . . . . Locate Traps 1 | . 1 . . . . . Dispatch Records 2 | . 2 . . . . . Maintenance Status 1 | . 1 . . . . . Surveillance Status 1 | . 1 . . . . . Zone Layout 1 | . . . . . 1 . Derelict Proto ID Bank 1 | . . . 1 . . . Fabricator Hacks . | . . . . . . . Repair Station Hacks . | . . . . . . . Recycling Unit Hacks 4 | . 4 . . . . . Recycle Component 1 | . 1 . . . . . Process 1 | . 1 . . . . . Report Inventory 1 | . 1 . . . . . Retrieve Matter 1 | . 1 . . . . . Scanalyzer 1 | . . . . . 1 . Insert Component 1 | . . . . . 1 . Garrison Access Hacks . | . . . . . . . Unauthorized Hacks . | . . . . . . . Terminals . | . . . . . . . Fabricators . | . . . . . . . Repair Stations . | . . . . . . . Recycling Units . | . . . . . . . Scanalyzers . | . . . . . . . Garrison Access . | . . . . . . . Data Cores Recovered . | . . . . . . . Used . | . . . . . . . Hacking Detections 9 | . 7 . . 1 1 . Full Trace Events 4 | . 2 . . 1 1 . Feedback Events . | . . . . . . . Feedback Blocked . | . . . . . . . Robot Schematics Acquired . | . . . . . . . Robots Built . | . . . . . . . Authchips . | . . . . . . . Time . | . . . . . . . Total Robot Build Rating . | . . . . . . . Part Schematics Acquired . | . . . . . . . Parts Built . | . . . . . . . Authchips . | . . . . . . . Time . | . . . . . . . Total Part Build Rating . | . . . . . . . Parts Repaired . | . . . . . . . Time . | . . . . . . . Parts Recycled 1 | . 1 . . . . . Recycled Matter 152 | . 152 . . . . . Retrieved Matter 174 | . 174 . . . . . Retrieved Components . | . . . . . . . Parts Scanalyzed . | . . . . . . . Part Schematics Acquired . | . . . . . . . Parts Damaged . | . . . . . . . Bothacking | -11 -10 -10 -10 -9 -8 -7 ------------ Run | Yrd Mat Min Exi Min Mat Fac Used RIF Installer . | . . . . . . . Robots Hacked . | . . . . . . . Non-combat . | . . . . . . . Combat . | . . . . . . . Robot Hacks Applied . | . . . . . . . Relay Couplers Released . | . . . . . . . Fabnet Peak Effective % . | . . . . . . . Robots Rewired . | . . . . . . . Allies Hacked . | . . . . . . . Hacks Repelled . | . . . . . . . Allies | -11 -10 -10 -10 -9 -8 -7 -------- Run | Yrd Mat Min Exi Min Mat Fac Total Allies . | . . . . . . . Largest Group . | . . . . . . . Highest-Rated Group . | . . . . . . . Highest-Rated Ally . | . . . . . . . Total Orders . | . . . . . . . Ally Attacks . | . . . . . . . Total Damage . | . . . . . . . Kills . | . . . . . . . Allies Corrupted . | . . . . . . . Allies Melted . | . . . . . . . Intel | -11 -10 -10 -10 -9 -8 -7 ------- Run | Yrd Mat Min Exi Min Mat Fac Robot Analysis Total . | . . . . . . . Derelict Logs Recovered . | . . . . . . . Drone Launches . | . . . . . . . Drone Recoveries . | . . . . . . . Exploration | -11 -10 -10 -10 -9 -8 -7 ------------- Run | Yrd Mat Min Exi Min Mat Fac Turns Passed 5725 | 97 1959 115 1113 596 1493 352 Spaces Moved 2860 | 52 893 61 692 358 673 131 Core 6 | 5 . . . . . 1 Treads 2854 | 47 893 61 692 358 673 130 Legs . | . . . . . . . Wheels . | . . . . . . . Hover . | . . . . . . . Flight . | . . . . . . . Fastest Speed 50 | 50 160 160 160 160 152 150 Average Speed 178 | 158 203 160 160 160 173 207 Slowest Speed 850 | 200 320 160 160 160 305 850 Overloaded Moves . | . . . . . . . Propulsion Burnouts . | . . . . . . . Robots Hopped . | . . . . . . . Cave-ins Triggered . | . . . . . . . Exploration Rate (%) 47 | 5 99 13 92 72 45 3 Regions Visited 6 Branch Regions 3 Pre-discovered Areas 1 | . . . 1 . . . Known Exits Taken 6 | 1 1 1 1 1 1 . Unknown Exits Taken . | . . . . . . . Scrap Searched 1 | . . . . 1 . . Spaces Dug 1 | . . . . . 1 . Terrain Destroyed 97 | . . . . 29 68 . Melee . | . . . . . . . Projectile 62 | . . . . 29 33 . AOE 35 | . . . . . 35 . Terrain Rammed . | . . . . . . . Walls Destroyed . | . . . . . . . Machines Disabled . | . . . . . . . Actions | -11 -10 -10 -10 -9 -8 -7 --------- Run | Yrd Mat Min Exi Min Mat Fac Total 3254 | 64 965 79 699 383 875 189 Wait 151 | . 14 17 . 22 79 19 Move 2854 | 51 892 60 691 357 672 131 Hop . | . . . . . . . Pick Up 39 | 4 13 2 3 1 16 . Fast Attach 20 | 6 . . . . 10 4 Attach 21 | 2 3 . 1 . 9 6 Detach 5 | 1 . . . . 1 3 Swap 18 | . 5 . . . 13 . Drop 22 | . . . 2 3 8 9 Fire 118 | . 38 . . . 63 17 Melee . | . . . . . . . Ram . | . . . . . . . Kick . | . . . . . . . Crush 4 | . . . . . 4 . Escape Stasis . | . . . . . . . Rewire 2 | . . . 2 . . . Trap . | . . . . . . . Miscellaneous . | . . . . . . . Route ------- -11/Scrapyard -10/Materials (discovered 5 exits: *Mat x3 / *Min x2) -10/Mines -10/Exiles (discovered 2 exits: *Min x2) -9/Mines -8/Materials -7/Factory History --------- Turn | Location | Event 15 | -11/Scrapyard | Identified exit to Materials 15 | -11/Scrapyard | Discovered exit to Materials (range 16) 98 | -11/Scrapyard | Entered Materials 98 | -10/Materials | Evolved 1 slot: Utility x1 181 | -10/Materials | Identified exit to Materials 181 | -10/Materials | Discovered exit to Materials (range 8) 304 | -10/Materials | Build established: Hacker-Mutant 386 | -10/Materials | Identified exit to Mines 386 | -10/Materials | Discovered exit to Mines (range 7) 492 | -10/Materials | Discovered exit to Mines (range 7) 497 | -10/Materials | Discovered exit to Materials (range 15) 1833 | -10/Materials | Discovered exit to Materials (range 4) 2057 | -10/Materials | Entered Mines 2163 | -10/Mines | Deemed a non-threat by the Exiles lab entrance 2164 | -10/Mines | Identified exit to Exiles 2164 | -10/Mines | Discovered exit to Exiles (range 5) 2172 | -10/Mines | Entered Exiles 2195 | -10/Exiles | Identified exit to Mines 2195 | -10/Exiles | Discovered exit to Mines (range 15) 2217 | -10/Exiles | Met 8R-AWN 2243 | -10/Exiles | Met EX-HEX 2323 | -10/Exiles | Met EX-DEC 2400 | -10/Exiles | Learned location of Zion (-7) 2465 | -10/Exiles | Visited The Gauntlet 2901 | -10/Exiles | Met EX-BIN 2938 | -10/Exiles | Aligned with FarCom system 2939 | -10/Exiles | Given EX-Vault access code 3054 | -10/Exiles | Opened EX-Vault 3090 | -10/Exiles | Found AWS/Gauss 3133 | -10/Exiles | Warned to stay clear of 0b10 Research branches 3267 | -10/Exiles | Discovered exit to Mines (range 14) 3285 | -10/Exiles | Left Exiles lab with AWS/Gauss 3285 | -10/Exiles | Entered Mines 3354 | -9/Mines | Assembled infested the area 3359 | -9/Mines | Assisted by a Guerilla fighting off Assembled 3444 | -9/Mines | Destroyed 12 combat bots 3508 | -9/Mines | Met a Derelict who couldn't figure out how to use a Trap Extractor 3722 | -9/Mines | Identified exit to Materials 3722 | -9/Mines | Discovered exit to Materials (range 5) 3881 | -9/Mines | Entered Materials 3881 | -8/Materials | Evolved 4 slots: Propulsion x1, Utility x2, Weapon x1 4128 | -8/Materials | Destroyed 9 combat bots 4484 | -8/Materials | Build established: Hacker-Skirmisher 4759 | -8/Materials | Core integrity fell below 50% 4809 | -8/Materials | Garrison activated, responded to threat 5079 | -8/Materials | Core integrity fell below 20% 5333 | -8/Materials | Identified exit to Factory 5333 | -8/Materials | Discovered exit to Factory (range 10) 5374 | -8/Materials | Entered Factory 5374 | -7/Factory | Evolved 2 slots: Power x1, Utility x1 5726 | -7/Factory | Self-destructed Last Messages --------------- 05560_ K-01 Serf collects debris. 05564_ Dropped Broken Hvy. Particle Cannon. 05567_ K-01 Serf collects debris. 05574_ Destroyed Imp. Sensor Array. 05578_ Terminal disabled. 05604_ K-01 Serf collects debris. 05638_ Acquired Imp. Terrain Scanner. 05647_ Dropped Terrain Scanner. 05654_ Dropped Broken Minigun. 05654_ Dropped Broken Sensor Array. 05655_ Dropped Carbon-fiber Leg. 05655_ Dropped Imp. Hover Unit. 05677_ G-47 Trooper destroyed. 05701_ Critical hit (Burn: +37). 05703_ Adv. Treads destroyed. 05705_ G-47 Trooper misfires. 05708_ Imp. Heat Sink fried. 05708_ Lgt. Nuclear Core fried. 05708_ G-47 Trooper destroyed. 05723_ Acquired 35 matter. Map ----- +----------------------------------------------------+ | ??????????????# #?# ###??????????? | | ??????????????# #?# #??????????#?# | | ??????????????# #?# =############## | | ???????+#############+######?# + ! # | | ???? #?#?# % * # * # | | ???? #??## """[ # # | | ???? = #??#" """ # """ # | | ????? = #??#" """ # """"" # | | ????? #??#" + """"" # | | ?????? # T##############??#T """ ^# # | | ?????????##?????????????????#" """ # # | | ??????????????????#?????????#" """ # ""T"" # | | ????????????????????????????#" # """"" # | | ????????????????????????????## """ # # | | ?????????????????????????????# """ ######### | | ????????????????????????????## """ #???????? | | ????????????????????????##### #????#??? | | ???????????????? ???????# ] #???????? | | ??????????????"?????????# #???????? | | ???????????????????? ???# ### ###???????? | | ??????????? ??? ???????## #?? #??????#??? | | ????????????? ???? ?? ## #??/#?????????? | | ?????????? ????????????# #?????????????? | | ???????????????????? ??# #?#???????????? | | ?????????? ???????????# [a###+##?????????????? | | ??????#????????????????# @=#? ???????????????? | | ???????????????????????# =[#? ?????????????? | | ????????????############ =%#? ???#???????????? | | ????????????# ## =#? ???#???????????? | | ????????????# = ## #????????? ????????? | | ?????????#??# !=[ ## ##?????????Y?#?????? | | ????????????# ! # #???#?????????????? | | ????????????# """""" # T ## #??????????????? | | ????????????# """""" + " #??????????????? | | ????????????# """""" # ####??????????????? | | ????????????# """""" # #??#??????????????? | | ????????????############# ###???##????????????? | | ?????#??#????#??????????# #??#?#??????????????? | | ?????????????????w???#??# #??????#??#?????????? | | ???????????????????????? #??#?????#??????????? | | ????????#?????????????#?###???????????????????? | | ?????????????????????????#????????#???????????? | | ??????????????#??????????#????????????????????? | | ????????????????????????#?????##??????????????? | | ??????????????????????????????????????????????? | | ??????????????????#???????????????????????????? | | ??????????????????????????????????????????????? | | ??????????????????????????????????????????????? | | ??????????????????????????????????????????????? | | ??????????????????????????????????????????????? | +----------------------------------------------------+ Best States ------------- Heat Dissipation 34 Energy Generation 19 Energy Capacity 430 Matter Stores 300 Matter Capacity 300 Sight Range 18 Robot Scan Range 15 Terrain Scan Range 16 Terrain Scan Density 10 Additional Mass Support 6 Armor Coverage 150 Resistance: KI 35 Resistance: TH 35 Resistance: EX 35 Resistance: EM 35 Resistance: I 35 Resistance: S 35 Resistance: P 35 Core Shielding 20 Evasion (%) 40 Targeting Accuracy 6 Recoil Reduction 3 Offensive Hacking 20 Item Schematics ----------------- None Robot Schematics ------------------ None Fabricated ------------ Nothing Alien Tech Used ----------------- None Achievements -------------- Exterminator Challenges ------------ None Game ------ Seed GodTransdimensionalFirepult Manual? 0 Play Time 01:27:41 Cumulative 13.6 hours Start 2024.04.04 @ 13:33:51 End 2024.04.04 @ 20:15:39 Sessions 6 Manual Loads 0 Difficulty Explorer Special Mode None Game No. 28 Rogue 15 Adventurer 8 Explorer 5 Win Type - Total 0 Types 0/0/0/0/0/0/0/0/0 Lore% 13 Gallery% 23 Achievement% 24 Wizard Run 0 Options --------- Layout 0 ASCII 0 Keyboard 1 Movement Arrows Keybinds 0 Fullscreen 1 Font 18/SmallcapsGlow Map View 38x25 Zoom Use 30% Tactical HUD 1 Map Filters NONE Filters NONE Steam 1 RUN: 6c666c97-4da6-4e06-b568-6de2895325f5